[Event "*** Titled Tuesday Blitz"]
[Site "Chess.com"]
[Date "2020.11.10"]
[Round "5"]
[White "hypert"]
[Black "tsaruk_maks"]
[Result "0-1"]
[WhiteElo "2471"]
[BlackElo "2624"]
[TimeControl "180+1"]
[EndTime "10:59:41 PST"]
[Termination "tsaruk_maks won by resignation"]

1. e4 {[%clk 0:03:00.8]} 1... e5 {[%clk 0:02:59.6]} 2. Nf3 {[%clk 0:03:00.7]}
2... Nc6 {[%clk 0:02:59.4]} 3. Bb5 {[%clk 0:03:01.3]} 3... a6 {[%clk 0:02:59.4]}
4. Ba4 {[%clk 0:03:01.6]} 4... Nf6 {[%clk 0:02:59.3]} 5. O-O {[%clk 0:03:02.2]}
5... Be7 {[%clk 0:02:58]} 6. d4 {[%clk 0:03:00.4]} 6... b5 {[%clk 0:02:28.9]} 7.
dxe5 {[%clk 0:02:48.9]} 7... bxa4 {[%clk 0:02:28.9]} 8. exf6 {[%clk 0:02:48.3]}
8... Bxf6 {[%clk 0:02:29.8]} 9. e5 {[%clk 0:02:42.4]} 9... Be7 {[%clk
0:02:30.4]} 10. Nc3 {[%clk 0:02:39.4]} 10... a3 {[%clk 0:02:31]} 11. bxa3 {[%clk
0:02:37.1]} 11... O-O {[%clk 0:02:31.2]} 12. Bf4 {[%clk 0:02:35.2]} 12... f6
{[%clk 0:01:36.9]} 13. Qd5+ {[%clk 0:02:12.9]} 13... Kh8 {[%clk 0:01:35.5]} 14.
Rad1 {[%clk 0:02:12.8]} 14... Qe8 {[%clk 0:00:37.6]} 15. Rfe1 {[%clk 0:02:06.1]}
15... fxe5 {[%clk 0:00:16.6]} 16. Bxe5 {[%clk 0:02:03.1]} 16... d6 {[%clk
0:00:16.8]} 17. Bg3 {[%clk 0:01:23.1]} 17... Bg4 {[%clk 0:00:17.3]} 18. Rd3
{[%clk 0:01:13.1]} 18... Qd7 {[%clk 0:00:17.3]} 19. h3 {[%clk 0:01:03]} 19...
Bf5 {[%clk 0:00:16.2]} 20. Rde3 {[%clk 0:01:00.6]} 20... Rae8 {[%clk 0:00:05.5]}
21. Ne4 {[%clk 0:01:00]} 21... Be6 {[%clk 0:00:02.3]} 22. Qh5 {[%clk 0:00:45.4]}
22... Bf7 {[%clk 0:00:02.4]} 23. Qg4 {[%clk 0:00:39.2]} 23... Qxg4 {[%clk
0:00:03]} 24. hxg4 {[%clk 0:00:39]} 24... Bxa2 {[%clk 0:00:03]} 25. Rc3 {[%clk
0:00:35.6]} 25... Bd5 {[%clk 0:00:03.5]} 26. Ned2 {[%clk 0:00:32.6]} 26... Bf6
{[%clk 0:00:02.5]} 27. Rce3 {[%clk 0:00:31.6]} 27... Rxe3 {[%clk 0:00:02.8]} 28.
Rxe3 {[%clk 0:00:32.5]} 28... h6 {[%clk 0:00:03.7]} 29. c4 {[%clk 0:00:31.7]}
29... Bf7 {[%clk 0:00:03.9]} 30. Bf4 {[%clk 0:00:30.5]} 30... Na5 {[%clk
0:00:03.5]} 31. g5 {[%clk 0:00:29.5]} 31... hxg5 {[%clk 0:00:03.4]} 32. Bxg5
{[%clk 0:00:29.9]} 32... Nxc4 {[%clk 0:00:03.1]} 33. Re4 {[%clk 0:00:20.5]}
33... Nxd2 {[%clk 0:00:03]} 34. Bxd2 {[%clk 0:00:14.2]} 34... Bg6 {[%clk
0:00:03]} 35. Rh4+ {[%clk 0:00:14.5]} 35... Kg8 {[%clk 0:00:03.6]} 36. Ra4
{[%clk 0:00:15.3]} 36... c5 {[%clk 0:00:03.2]} 37. Rxa6 {[%clk 0:00:15.3]} 37...
d5 {[%clk 0:00:03.8]} 38. Rc6 {[%clk 0:00:15.2]} 38... c4 {[%clk 0:00:04.1]} 39.
a4 {[%clk 0:00:15.9]} 39... Be8 {[%clk 0:00:03.7]} 40. Rc5 {[%clk 0:00:15.2]}
40... Bxa4 {[%clk 0:00:03.5]} 41. Rxd5 {[%clk 0:00:15.4]} 41... c3 {[%clk
0:00:04.2]} 42. Bc1 {[%clk 0:00:15.2]} 42... Rb8 {[%clk 0:00:03.6]} 43. Nd4
{[%clk 0:00:12.8]} 43... Rb1 {[%clk 0:00:03.1]} 44. Ne2 {[%clk 0:00:13.3]} 44...
Bb3 {[%clk 0:00:02.3]} 45. Rc5 {[%clk 0:00:09.4]} 45... Bd1 {[%clk 0:00:03]} 46.
Kf1 {[%clk 0:00:09.4]} 46... Bxe2+ {[%clk 0:00:03.3]} 47. Kxe2 {[%clk
0:00:10.3]} 47... Rxc1 {[%clk 0:00:04.2]} 48. Rc8+ {[%clk 0:00:11.2]} 48... Kh7
{[%clk 0:00:04.2]} 49. g4 {[%clk 0:00:12.1]} 49... Rc2+ {[%clk 0:00:04.6]} 50.
Ke3 {[%clk 0:00:11.5]} 50... g5 {[%clk 0:00:04.6]} 51. Ke4 {[%clk 0:00:10.8]}
51... Rxf2 {[%clk 0:00:04.2]} 52. Rc6 {[%clk 0:00:09.9]} 52... Rf4+ {[%clk
0:00:05.1]} 53. Ke3 {[%clk 0:00:09.6]} 53... Kg6 {[%clk 0:00:06]} 54. Rc5 {[%clk
0:00:09.8]} 54... Bd4+ {[%clk 0:00:05.4]} 0-1

[Event "*** Titled Tuesday Blitz"]
[Site "Chess.com"]
[Date "2020.11.10"]
[Round "5"]
[White "ljuks68"]
[Black "natelleka"]
[Result "1-0"]
[WhiteElo "2362"]
[BlackElo "2158"]
[TimeControl "180+1"]
[EndTime "10:59:41 PST"]
[Termination "ljuks68 won on time"]

1. e4 {[%clk 0:03:00.9]} 1... e5 {[%clk 0:02:58.5]} 2. Nf3 {[%clk 0:03:00.4]}
2... Nf6 {[%clk 0:02:59]} 3. Nxe5 {[%clk 0:02:59.2]} 3... Nxe4 {[%clk
0:02:59.2]} 4. Qe2 {[%clk 0:02:57.5]} 4... Qe7 {[%clk 0:02:59.5]} 5. Qxe4 {[%clk
0:02:56.1]} 5... d6 {[%clk 0:02:59.9]} 6. d4 {[%clk 0:02:52]} 6... dxe5 {[%clk
0:02:59.8]} 7. dxe5 {[%clk 0:02:47.9]} 7... Nc6 {[%clk 0:02:59.7]} 8. Bf4 {[%clk
0:02:40.4]} 8... g5 {[%clk 0:02:59.5]} 9. Bg3 {[%clk 0:02:38.3]} 9... f5 {[%clk
0:02:59.5]} 10. Qe2 {[%clk 0:02:23]} 10... f4 {[%clk 0:02:59.3]} 11. Qh5+ {[%clk
0:02:22.7]} 11... Qf7 {[%clk 0:02:59]} 12. Qxg5 {[%clk 0:02:22.6]} 12... fxg3
{[%clk 0:02:59.2]} 13. hxg3 {[%clk 0:02:22.8]} 13... Bg7 {[%clk 0:02:51.8]} 14.
f4 {[%clk 0:02:22.3]} 14... Bf5 {[%clk 0:02:33.6]} 15. Nc3 {[%clk 0:02:14.5]}
15... Bxc2 {[%clk 0:02:24]} 16. Be2 {[%clk 0:02:01.1]} 16... Nd4 {[%clk
0:01:56.7]} 17. Bh5 {[%clk 0:01:54.3]} 17... Bg6 {[%clk 0:01:52.7]} 18. O-O-O
{[%clk 0:01:53.5]} 18... Ne6 {[%clk 0:01:22.9]} 19. Qg4 {[%clk 0:01:49.2]} 19...
Bxh5 {[%clk 0:00:57.7]} 20. Rxh5 {[%clk 0:01:47.9]} 20... O-O {[%clk 0:00:55.1]}
21. f5 {[%clk 0:01:37.3]} 21... Rad8 {[%clk 0:00:36.1]} 22. fxe6 {[%clk
0:01:22.9]} 22... Rxd1+ {[%clk 0:00:35]} 23. Kxd1 {[%clk 0:01:09.3]} 23... Rd8+
{[%clk 0:00:31.2]} 24. Kc2 {[%clk 0:01:08.4]} 24... Qf2+ {[%clk 0:00:21.7]} 25.
Kb3 {[%clk 0:01:07.7]} 25... Qb6+ {[%clk 0:00:20.9]} 26. Qb4 {[%clk 0:01:03.9]}
26... Qxe6+ {[%clk 0:00:16.1]} 27. Qc4 {[%clk 0:00:59.7]} 27... Qxc4+ {[%clk
0:00:15.5]} 28. Kxc4 {[%clk 0:00:59.6]} 28... Re8 {[%clk 0:00:15.8]} 29. Kd5
{[%clk 0:00:56.1]} 29... Kf7 {[%clk 0:00:13.6]} 30. Rf5+ {[%clk 0:00:53.1]}
30... Ke7 {[%clk 0:00:13.4]} 31. Ke4 {[%clk 0:00:52.3]} 31... Ke6 {[%clk
0:00:12.6]} 32. Rg5 {[%clk 0:00:49.3]} 32... Bh6 {[%clk 0:00:09.5]} 33. Rh5
{[%clk 0:00:49]} 33... Bc1 {[%clk 0:00:08.7]} 34. Nd5 {[%clk 0:00:44.8]} 34...
Bxb2 {[%clk 0:00:07.5]} 35. Nf4+ {[%clk 0:00:44.5]} 35... Kd7 {[%clk 0:00:06]}
36. Rxh7+ {[%clk 0:00:42.8]} 36... Kc6 {[%clk 0:00:06.3]} 37. e6 {[%clk
0:00:41.8]} 37... b5 {[%clk 0:00:06]} 38. Kf5 {[%clk 0:00:30.5]} 38... a5 {[%clk
0:00:04.8]} 39. Ng6 {[%clk 0:00:18.6]} 39... Kd6 {[%clk 0:00:03.4]} 40. Rd7+
{[%clk 0:00:17]} 40... Kc6 {[%clk 0:00:03.3]} 41. Ne5+ {[%clk 0:00:16.8]} 41...
Kb7 {[%clk 0:00:02.9]} 42. e7 {[%clk 0:00:13.1]} 42... Kc8 {[%clk 0:00:03]} 43.
Rd8+ {[%clk 0:00:09.1]} 43... Rxd8 {[%clk 0:00:02.8]} 44. exd8=Q+ {[%clk
0:00:09.5]} 44... Kxd8 {[%clk 0:00:03.4]} 45. Nc6+ {[%clk 0:00:10.1]} 45... Kd7
{[%clk 0:00:03.8]} 46. Nxa5 {[%clk 0:00:10.4]} 46... Kd6 {[%clk 0:00:03.7]} 47.
Ke4 {[%clk 0:00:10]} 47... c5 {[%clk 0:00:02.1]} 48. g4 {[%clk 0:00:08.7]} 1-0

[Event "*** Titled Tuesday Blitz"]
[Site "Chess.com"]
[Date "2020.11.10"]
[Round "5"]
[White "Azerichess"]
[Black "RD4ever"]
[Result "1/2-1/2"]
[WhiteElo "2964"]
[BlackElo "2830"]
[TimeControl "180+1"]
[EndTime "10:59:43 PST"]
[Termination "Game drawn by agreement"]

1. d4 {[%clk 0:02:42.4]} 1... d5 {[%clk 0:02:58.9]} 2. c4 {[%clk 0:02:42.8]}
2... e6 {[%clk 0:02:59.5]} 3. Nc3 {[%clk 0:02:41.9]} 3... c5 {[%clk 0:02:59.6]}
4. cxd5 {[%clk 0:02:37.8]} 4... exd5 {[%clk 0:03:00.5]} 5. Nf3 {[%clk 0:02:38]}
5... Nc6 {[%clk 0:03:00.3]} 6. a3 {[%clk 0:02:33]} 6... Nf6 {[%clk 0:02:50.8]}
7. Bg5 {[%clk 0:02:30.1]} 7... cxd4 {[%clk 0:02:28.7]} 8. Nxd4 {[%clk 0:02:31]}
8... Bc5 {[%clk 0:02:29.3]} 9. e3 {[%clk 0:02:28.1]} 9... Nxd4 {[%clk 0:02:23]}
10. exd4 {[%clk 0:02:29]} 10... Be7 {[%clk 0:02:23.6]} 11. Bb5+ {[%clk
0:02:22.5]} 11... Bd7 {[%clk 0:02:18.7]} 12. Bxf6 {[%clk 0:02:22.1]} 12... Bxf6
{[%clk 0:02:16]} 13. Qe2+ {[%clk 0:02:22.2]} 13... Kf8 {[%clk 0:02:07.6]} 14.
O-O {[%clk 0:02:21.4]} 14... Be6 {[%clk 0:02:02]} 15. Rad1 {[%clk 0:02:18.6]}
15... g6 {[%clk 0:02:00.6]} 16. Ba4 {[%clk 0:02:04.4]} 16... Qb6 {[%clk
0:01:46.7]} 17. b4 {[%clk 0:01:53.3]} 17... Kg7 {[%clk 0:01:43.1]} 18. Bb3
{[%clk 0:01:52.3]} 18... Rhd8 {[%clk 0:01:36.4]} 19. Qf3 {[%clk 0:01:52]} 19...
a5 {[%clk 0:01:23.8]} 20. Nxd5 {[%clk 0:01:34.5]} 20... Bxd5 {[%clk 0:01:22.4]}
21. Bxd5 {[%clk 0:01:35.4]} 21... axb4 {[%clk 0:01:19.7]} 22. axb4 {[%clk
0:01:36.3]} 22... Rd7 {[%clk 0:01:12.4]} 23. g3 {[%clk 0:00:53]} 23... Rad8
{[%clk 0:01:07.8]} 24. Be4 {[%clk 0:00:51.5]} 24... Bxd4 {[%clk 0:00:58.5]} 25.
Kg2 {[%clk 0:00:51.8]} 25... Qxb4 {[%clk 0:00:51.5]} 26. Rb1 {[%clk 0:00:51.5]}
26... Qe7 {[%clk 0:00:46.8]} 27. Bxb7 {[%clk 0:00:51.4]} 27... Qf6 {[%clk
0:00:45.1]} 28. h4 {[%clk 0:00:51.6]} 28... Qxf3+ {[%clk 0:00:44.9]} 29. Bxf3
{[%clk 0:00:52.5]} 29... h5 {[%clk 0:00:45.1]} 30. Rfc1 {[%clk 0:00:51.4]} 30...
Bf6 {[%clk 0:00:44.3]} 31. Rc2 {[%clk 0:00:45.9]} 31... Re7 {[%clk 0:00:37.7]}
32. Rb6 {[%clk 0:00:43]} 32... Bd4 {[%clk 0:00:35.2]} 33. Rbc6 {[%clk 0:00:43]}
33... Bf6 {[%clk 0:00:35.1]} 34. Ra2 {[%clk 0:00:43]} 34... Red7 {[%clk
0:00:33]} 35. Raa6 {[%clk 0:00:42.3]} 35... Be5 {[%clk 0:00:31.5]} 36. Rc5
{[%clk 0:00:42.8]} 36... Bd4 {[%clk 0:00:29]} 37. Rc4 {[%clk 0:00:43.3]} 37...
Be5 {[%clk 0:00:27.2]} 38. Re4 {[%clk 0:00:43.8]} 38... Bf6 {[%clk 0:00:23.4]}
39. Be2 {[%clk 0:00:42.8]} 39... Re7 {[%clk 0:00:22.4]} 40. Rxe7 {[%clk
0:00:41.8]} 40... Bxe7 {[%clk 0:00:23.3]} 41. Ra7 {[%clk 0:00:42.7]} 41... Bc5
{[%clk 0:00:21.8]} 42. Ra5 {[%clk 0:00:42.9]} 42... Bd4 {[%clk 0:00:20.1]} 43.
Rb5 {[%clk 0:00:38.6]} 43... Rd7 {[%clk 0:00:20.2]} 44. Bf3 {[%clk 0:00:34.9]}
44... Bf6 {[%clk 0:00:20.2]} 45. Bd5 {[%clk 0:00:35.4]} 45... Re7 {[%clk
0:00:20.3]} 46. f4 {[%clk 0:00:35]} 46... Rd7 {[%clk 0:00:20.2]} 47. Kf3 {[%clk
0:00:35.2]} 47... Re7 {[%clk 0:00:20.5]} 48. Be4 {[%clk 0:00:35.4]} 48... Rd7
{[%clk 0:00:20.7]} 49. f5 {[%clk 0:00:35.6]} 49... g5 {[%clk 0:00:19.5]} 50.
hxg5 {[%clk 0:00:33.8]} 50... Bxg5 {[%clk 0:00:20.4]} 51. Rb1 {[%clk 0:00:32.1]}
51... Rd8 {[%clk 0:00:15.3]} 52. Rh1 {[%clk 0:00:32.3]} 52... Rh8 {[%clk
0:00:15.2]} 53. Kg2 {[%clk 0:00:30.8]} 53... h4 {[%clk 0:00:15.3]} 54. g4 {[%clk
0:00:31.2]} 54... Kf6 {[%clk 0:00:15.1]} 55. Rb1 {[%clk 0:00:30]} 55... Re8
{[%clk 0:00:14.8]} 56. Rb6+ {[%clk 0:00:29.3]} 56... Kg7 {[%clk 0:00:13.9]} 57.
Rb4 {[%clk 0:00:24.2]} 57... Rd8 {[%clk 0:00:11.9]} 58. Rb2 {[%clk 0:00:23]}
58... Rd2+ {[%clk 0:00:11.6]} 59. Rxd2 {[%clk 0:00:22.1]} 59... Bxd2 {[%clk
0:00:12.5]} 60. Kh3 {[%clk 0:00:23]} 60... Bg5 {[%clk 0:00:13.1]} 1/2-1/2

[Event "*** Titled Tuesday Blitz"]
[Site "Chess.com"]
[Date "2020.11.10"]
[Round "5"]
[White "MartinMatthiesen"]
[Black "klimkoj"]
[Result "0-1"]
[WhiteElo "2412"]
[BlackElo "2630"]
[TimeControl "180+1"]
[EndTime "10:59:43 PST"]
[Termination "klimkoj won on time"]

1. d4 {[%clk 0:03:00.9]} 1... Nf6 {[%clk 0:02:58.4]} 2. c4 {[%clk 0:02:58.5]}
2... e6 {[%clk 0:02:58.5]} 3. Nf3 {[%clk 0:02:57.8]} 3... b6 {[%clk 0:02:58.6]}
4. g3 {[%clk 0:02:57.5]} 4... Bb7 {[%clk 0:02:58.6]} 5. Bg2 {[%clk 0:02:57.5]}
5... Be7 {[%clk 0:02:58.9]} 6. O-O {[%clk 0:02:57.5]} 6... O-O {[%clk
0:02:58.7]} 7. Nc3 {[%clk 0:02:57.3]} 7... Ne4 {[%clk 0:02:58.8]} 8. Bd2 {[%clk
0:02:57.3]} 8... c5 {[%clk 0:02:54.5]} 9. d5 {[%clk 0:02:56.1]} 9... Nxc3 {[%clk
0:02:53]} 10. Bxc3 {[%clk 0:02:55.7]} 10... exd5 {[%clk 0:02:49.7]} 11. cxd5
{[%clk 0:02:55.4]} 11... d6 {[%clk 0:02:49.8]} 12. a4 {[%clk 0:02:34.6]} 12...
Nd7 {[%clk 0:02:46.8]} 13. Nd2 {[%clk 0:02:32.6]} 13... a6 {[%clk 0:02:45.4]}
14. Nc4 {[%clk 0:02:27.5]} 14... Qc7 {[%clk 0:02:37.1]} 15. e4 {[%clk
0:02:26.2]} 15... b5 {[%clk 0:02:32.4]} 16. Ne3 {[%clk 0:02:10.7]} 16... Bf6
{[%clk 0:02:24.1]} 17. f4 {[%clk 0:02:02.8]} 17... Rae8 {[%clk 0:02:19.3]} 18.
Ng4 {[%clk 0:01:38.2]} 18... Bxc3 {[%clk 0:02:18.4]} 19. bxc3 {[%clk 0:01:39.1]}
19... c4 {[%clk 0:02:19]} 20. axb5 {[%clk 0:01:36.6]} 20... axb5 {[%clk
0:02:19.9]} 21. Qd4 {[%clk 0:01:31.4]} 21... Nc5 {[%clk 0:02:19]} 22. Rae1
{[%clk 0:01:19.9]} 22... f6 {[%clk 0:01:41.9]} 23. h4 {[%clk 0:01:09.3]} 23...
Bc8 {[%clk 0:01:37.6]} 24. Ne3 {[%clk 0:01:04.2]} 24... Bd7 {[%clk 0:01:37.9]}
25. Re2 {[%clk 0:01:00.6]} 25... Qa5 {[%clk 0:01:28]} 26. Rc2 {[%clk 0:00:45.9]}
26... Re7 {[%clk 0:01:16.1]} 27. h5 {[%clk 0:00:41]} 27... Rfe8 {[%clk 0:01:12]}
28. h6 {[%clk 0:00:38.9]} 28... Nxe4 {[%clk 0:01:07.8]} 29. hxg7 {[%clk
0:00:38.8]} 29... Nc5 {[%clk 0:00:54.4]} 30. Rf3 {[%clk 0:00:26.4]} 30... Qa1+
{[%clk 0:00:41.7]} 31. Rf1 {[%clk 0:00:24.9]} 31... Qa4 {[%clk 0:00:37.4]} 32.
Re2 {[%clk 0:00:19.8]} 32... Nb3 {[%clk 0:00:30.4]} 33. Qxf6 {[%clk 0:00:19.5]}
33... Qa7 {[%clk 0:00:30.2]} 34. Rfe1 {[%clk 0:00:17.1]} 34... Bg4 {[%clk
0:00:26.1]} 35. Kh2 {[%clk 0:00:13.5]} 35... Bxe2 {[%clk 0:00:25.8]} 36. Nf5
{[%clk 0:00:13.7]} 36... h6 {[%clk 0:00:16.3]} 37. Nxh6+ {[%clk 0:00:13.9]}
37... Kh7 {[%clk 0:00:16.3]} 38. g8=Q+ {[%clk 0:00:13.6]} 38... Rxg8 {[%clk
0:00:16.5]} 39. Nxg8 {[%clk 0:00:13.8]} 39... Kxg8 {[%clk 0:00:17.4]} 40. Qg5+
{[%clk 0:00:08.1]} 40... Kf8 {[%clk 0:00:17.2]} 41. Qf6+ {[%clk 0:00:07.9]}
41... Ke8 {[%clk 0:00:16.2]} 42. Qg6+ {[%clk 0:00:06.8]} 42... Kd8 {[%clk
0:00:16]} 43. Qg8+ {[%clk 0:00:06]} 43... Kc7 {[%clk 0:00:15.9]} 44. Qf8 {[%clk
0:00:05.6]} 44... Kb6 {[%clk 0:00:16]} 45. Bf3 {[%clk 0:00:03.3]} 45... Ka6
{[%clk 0:00:05.5]} 46. Qc8+ {[%clk 0:00:02.4]} 46... Ka5 {[%clk 0:00:05.7]} 47.
Qd8+ {[%clk 0:00:02.1]} 47... Ka4 {[%clk 0:00:04.5]} 0-1

[Event "*** Titled Tuesday Blitz"]
[Site "Chess.com"]
[Date "2020.11.10"]
[Round "5"]
[White "Marcin"]
[Black "Algeriano22"]
[Result "0-1"]
[WhiteElo "2483"]
[BlackElo "2703"]
[TimeControl "180+1"]
[EndTime "10:59:45 PST"]
[Termination "Algeriano22 won by resignation"]

1. d4 {[%clk 0:03:00.9]} 1... Nf6 {[%clk 0:02:42.6]} 2. c4 {[%clk 0:02:59.2]}
2... d6 {[%clk 0:02:31.5]} 3. Nf3 {[%clk 0:02:57]} 3... g6 {[%clk 0:02:31]} 4.
g3 {[%clk 0:02:55.3]} 4... Bg7 {[%clk 0:02:26.3]} 5. Bg2 {[%clk 0:02:55.5]} 5...
O-O {[%clk 0:02:26.4]} 6. O-O {[%clk 0:02:56]} 6... Nc6 {[%clk 0:02:23.9]} 7.
Nc3 {[%clk 0:02:56.3]} 7... Bg4 {[%clk 0:02:23.6]} 8. Be3 {[%clk 0:02:50.7]}
8... Qd7 {[%clk 0:02:19.9]} 9. Re1 {[%clk 0:02:48.4]} 9... h6 {[%clk 0:02:08.1]}
10. Rc1 {[%clk 0:02:46.2]} 10... Kh7 {[%clk 0:02:07.2]} 11. d5 {[%clk
0:02:44.3]} 11... Na5 {[%clk 0:02:03.4]} 12. b3 {[%clk 0:02:35.7]} 12... c5
{[%clk 0:02:03.2]} 13. dxc6 {[%clk 0:02:34.9]} 13... bxc6 {[%clk 0:01:52.6]} 14.
Nd4 {[%clk 0:02:30.7]} 14... e5 {[%clk 0:01:42.7]} 15. Nc2 {[%clk 0:02:28.7]}
15... Bh3 {[%clk 0:01:31.6]} 16. f3 {[%clk 0:02:22.9]} 16... Be6 {[%clk
0:01:15.3]} 17. Bf2 {[%clk 0:02:21.5]} 17... Nb7 {[%clk 0:00:51.9]} 18. e4
{[%clk 0:02:12.8]} 18... Rfd8 {[%clk 0:00:51.5]} 19. Qe2 {[%clk 0:02:11.6]}
19... Qc7 {[%clk 0:00:46]} 20. Red1 {[%clk 0:02:07.4]} 20... a5 {[%clk
0:00:45.7]} 21. Na4 {[%clk 0:02:04.4]} 21... Nd7 {[%clk 0:00:39.6]} 22. Ne3
{[%clk 0:01:53.1]} 22... Nbc5 {[%clk 0:00:38.7]} 23. Nb2 {[%clk 0:01:48]} 23...
Nb6 {[%clk 0:00:33.9]} 24. h4 {[%clk 0:01:39.8]} 24... h5 {[%clk 0:00:32.6]} 25.
Kh2 {[%clk 0:01:40.1]} 25... Bc8 {[%clk 0:00:32.5]} 26. Bh3 {[%clk 0:01:39.2]}
26... Bxh3 {[%clk 0:00:32.3]} 27. Kxh3 {[%clk 0:01:39.4]} 27... Ne6 {[%clk
0:00:33]} 28. Kh2 {[%clk 0:01:35.5]} 28... Nd4 {[%clk 0:00:32.4]} 29. Rxd4
{[%clk 0:01:35.6]} 29... exd4 {[%clk 0:00:31.7]} 30. Ng2 {[%clk 0:01:35.2]}
30... c5 {[%clk 0:00:24.6]} 31. Nd3 {[%clk 0:01:30.3]} 31... a4 {[%clk
0:00:24.5]} 32. b4 {[%clk 0:01:29.1]} 32... a3 {[%clk 0:00:24.3]} 33. b5 {[%clk
0:01:23.6]} 33... Na4 {[%clk 0:00:23.6]} 34. Ngf4 {[%clk 0:01:19]} 34... Nc3
{[%clk 0:00:23.7]} 35. Qc2 {[%clk 0:01:18.9]} 35... Qa5 {[%clk 0:00:18.8]} 36.
Be1 {[%clk 0:01:16.5]} 36... Qa4 {[%clk 0:00:16.7]} 37. Qb3 {[%clk 0:01:07.6]}
37... Qxb3 {[%clk 0:00:14.5]} 38. axb3 {[%clk 0:01:08]} 38... a2 {[%clk
0:00:15.4]} 39. Ra1 {[%clk 0:01:04.2]} 39... Ra3 {[%clk 0:00:15.6]} 40. Nc1
{[%clk 0:01:02.9]} 40... Rda8 {[%clk 0:00:13.2]} 41. Nfd3 {[%clk 0:00:59.9]}
41... Bh6 {[%clk 0:00:11.5]} 42. f4 {[%clk 0:00:59.7]} 42... Bg7 {[%clk
0:00:11.6]} 43. e5 {[%clk 0:00:55.1]} 43... dxe5 {[%clk 0:00:11.5]} 44. fxe5
{[%clk 0:00:56]} 44... Ne4 {[%clk 0:00:06.7]} 45. Kg2 {[%clk 0:00:52]} 45... Bf8
{[%clk 0:00:05.9]} 46. Kf3 {[%clk 0:00:52.2]} 46... Nc3 {[%clk 0:00:06.2]} 47.
Bxc3 {[%clk 0:00:45.2]} 47... dxc3 {[%clk 0:00:06]} 48. Ke2 {[%clk 0:00:45.9]}
48... Rd8 {[%clk 0:00:06.4]} 49. Kd1 {[%clk 0:00:45]} 49... Bh6 {[%clk
0:00:04.7]} 50. Kc2 {[%clk 0:00:44.6]} 50... Bxc1 {[%clk 0:00:05.2]} 51. Nxc1
{[%clk 0:00:44.3]} 51... Rd2+ {[%clk 0:00:05.7]} 52. Kxc3 {[%clk 0:00:44.7]}
52... Rg2 {[%clk 0:00:06.4]} 53. b6 {[%clk 0:00:42.5]} 53... Ra6 {[%clk
0:00:05.5]} 54. Rxa2 {[%clk 0:00:40.3]} 54... Rxg3+ {[%clk 0:00:04.6]} 55. Kb2
{[%clk 0:00:35.3]} 55... Rxb6 {[%clk 0:00:05.5]} 56. Ra7 {[%clk 0:00:34.1]}
56... Kg7 {[%clk 0:00:05.1]} 57. e6 {[%clk 0:00:34.5]} 57... Rxe6 {[%clk
0:00:05.1]} 58. Ka3 {[%clk 0:00:33.4]} 58... Re1 {[%clk 0:00:03.8]} 59. Na2
{[%clk 0:00:33.4]} 59... Ra1 {[%clk 0:00:03.4]} 60. Ra5 {[%clk 0:00:29.9]} 60...
Rg2 {[%clk 0:00:03.2]} 0-1

[Event "*** Titled Tuesday Blitz"]
[Site "Chess.com"]
[Date "2020.11.10"]
[Round "5"]
[White "Gulkov_Igor"]
[Black "hansen"]
[Result "0-1"]
[WhiteElo "2461"]
[BlackElo "2885"]
[TimeControl "180+1"]
[EndTime "10:59:45 PST"]
[Termination "hansen won by resignation"]

1. Nf3 {[%clk 0:03:00.9]} 1... Nf6 {[%clk 0:02:57.6]} 2. c4 {[%clk 0:02:59.9]}
2... g6 {[%clk 0:02:58.1]} 3. Nc3 {[%clk 0:02:59.6]} 3... d5 {[%clk 0:02:56.6]}
4. cxd5 {[%clk 0:02:59.1]} 4... Nxd5 {[%clk 0:02:57.5]} 5. e4 {[%clk 0:02:59.3]}
5... Nxc3 {[%clk 0:02:57.6]} 6. dxc3 {[%clk 0:02:59.5]} 6... Qxd1+ {[%clk
0:02:57.8]} 7. Kxd1 {[%clk 0:02:59.8]} 7... Nd7 {[%clk 0:02:58.7]} 8. Bf4 {[%clk
0:02:58.4]} 8... Nc5 {[%clk 0:02:57.9]} 9. Nd2 {[%clk 0:02:54.8]} 9... Ne6
{[%clk 0:02:51]} 10. Be3 {[%clk 0:02:54.3]} 10... Bd7 {[%clk 0:02:49.1]} 11. Kc2
{[%clk 0:02:53]} 11... O-O-O {[%clk 0:02:48.9]} 12. Bc4 {[%clk 0:02:49]} 12...
f5 {[%clk 0:02:49]} 13. exf5 {[%clk 0:02:45.3]} 13... gxf5 {[%clk 0:02:49.4]}
14. f4 {[%clk 0:02:44.8]} 14... Bg7 {[%clk 0:02:32.6]} 15. Rhe1 {[%clk
0:02:37.4]} 15... Bf6 {[%clk 0:02:29.4]} 16. Nf3 {[%clk 0:02:30]} 16... Nf8
{[%clk 0:02:03.4]} 17. Bxa7 {[%clk 0:02:15]} 17... Ba4+ {[%clk 0:02:02.2]} 18.
b3 {[%clk 0:02:08.2]} 18... Bc6 {[%clk 0:02:02.1]} 19. Bd4 {[%clk 0:01:54.1]}
19... Be4+ {[%clk 0:02:02.2]} 20. Kb2 {[%clk 0:01:38.7]} 20... Ng6 {[%clk
0:01:59.1]} 21. Bxf6 {[%clk 0:01:27.8]} 21... exf6 {[%clk 0:01:59.3]} 22. Nd4
{[%clk 0:01:20.3]} 22... c5 {[%clk 0:01:42.4]} 23. Ne6 {[%clk 0:01:17.8]} 23...
Rd2+ {[%clk 0:01:40.4]} 24. Ka3 {[%clk 0:01:17.8]} 24... b6 {[%clk 0:01:36.2]}
25. Rad1 {[%clk 0:01:12.1]} 25... Rxg2 {[%clk 0:00:19.1]} 26. Rd6 {[%clk
0:01:10.8]} 26... Nh4 {[%clk 0:00:14]} 27. Rxb6 {[%clk 0:01:05.9]} 27... Nf3
{[%clk 0:00:13.5]} 28. Rd1 {[%clk 0:01:01.6]} 28... Nd2 {[%clk 0:00:13.5]} 29.
Nxc5 {[%clk 0:00:57.4]} 29... Kc7 {[%clk 0:00:10.9]} 30. Rb4 {[%clk 0:00:21.5]}
30... Nb1+ {[%clk 0:00:05.2]} 31. Rxb1 {[%clk 0:00:19.9]} 31... Bxb1 {[%clk
0:00:06.1]} 32. Ne6+ {[%clk 0:00:19]} 32... Kd7 {[%clk 0:00:04.8]} 33. Rb7+
{[%clk 0:00:16.6]} 33... Kc6 {[%clk 0:00:05.2]} 34. Rc7+ {[%clk 0:00:16]} 34...
Kd6 {[%clk 0:00:05.6]} 35. Rb7 {[%clk 0:00:12]} 35... Rxa2+ {[%clk 0:00:04.6]}
36. Kb4 {[%clk 0:00:12.4]} 36... Be4 {[%clk 0:00:05]} 37. Rb6+ {[%clk
0:00:11.4]} 37... Ke7 {[%clk 0:00:05.4]} 38. Nd4 {[%clk 0:00:10.9]} 38... Ra7
{[%clk 0:00:03.6]} 39. Re6+ {[%clk 0:00:10.6]} 39... Kd7 {[%clk 0:00:03.4]} 40.
Bb5+ {[%clk 0:00:11]} 40... Kc8 {[%clk 0:00:03.8]} 41. c4 {[%clk 0:00:11.2]}
41... Rd8 {[%clk 0:00:03.4]} 42. Kc5 {[%clk 0:00:11.4]} 42... Rc7+ {[%clk
0:00:03.6]} 43. Nc6 {[%clk 0:00:10.8]} 43... Kb7 {[%clk 0:00:04]} 44. Rxf6
{[%clk 0:00:09.8]} 44... Rdc8 {[%clk 0:00:04.1]} 45. Kd4 {[%clk 0:00:09.1]}
45... Bxc6 {[%clk 0:00:03.7]} 46. Bxc6+ {[%clk 0:00:09.4]} 46... Rxc6 {[%clk
0:00:04.2]} 47. Rxf5 {[%clk 0:00:10]} 47... Rd6+ {[%clk 0:00:04.4]} 48. Kc3
{[%clk 0:00:10.5]} 48... Rh6 {[%clk 0:00:04.1]} 49. Rf7+ {[%clk 0:00:10.4]}
49... Rc7 {[%clk 0:00:04.3]} 50. Rf5 {[%clk 0:00:09.6]} 50... Rxh2 {[%clk
0:00:04.5]} 51. Kb4 {[%clk 0:00:09.7]} 51... Rc2 {[%clk 0:00:04.3]} 52. Rb5+
{[%clk 0:00:09.7]} 52... Kc8 {[%clk 0:00:04.4]} 53. Rh5 {[%clk 0:00:09.4]} 53...
Rb7+ {[%clk 0:00:04.5]} 54. Ka3 {[%clk 0:00:09.4]} 54... Rc3 {[%clk 0:00:04.6]}
55. Rc5+ {[%clk 0:00:07.6]} 55... Kb8 {[%clk 0:00:05.2]} 56. Kb2 {[%clk
0:00:06.5]} 56... Rcxb3+ {[%clk 0:00:05.4]} 0-1